fUSD/lending_fUSD_20260525
["ID","MTS","AMOUNT","RATE_DAILY","PERIOD"]
[422945500,1779666639000,-500.0,0.00014898,2]
[422945502,1779666639000,-500.0,0.00014898,2]
[422945503,1779666639000,-500.0,0.00014898,2]
[422945505,1779666639000,-500.0,0.00014898,2]
[422945510,1779666639000,-500.0,0.00014898,2]
[422945489,1779666639000,-500.0,0.00014898,2]
[422945507,1779666639000,-500.0,0.00014898,2]
[422945506,1779666639000,-500.0,0.00014898,2]
[422945521,1779666639000,-640.53,0.00014898,2]
[422945531,1779666639000,-640.53,0.00014898,2]
[422945511,1779666639000,-500.0,0.00014898,2]
[422945512,1779666639000,-500.0,0.00014898,2]
[422945513,1779666639000,-500.0,0.00014898,2]
[422945529,1779666639000,-640.53,0.00014898,2]
[422945517,1779666639000,-640.53,0.00014898,2]
[422945508,1779666639000,-500.0,0.00014898,2]
[422945514,1779666639000,-500.0,0.00014898,2]
[422945509,1779666639000,-500.0,0.00014898,2]
[422945515,1779666639000,-500.0,0.00014898,2]
[422945519,1779666639000,-640.53,0.00014898,2]
[422945518,1779666639000,-640.53,0.00014898,2]
[422945516,1779666639000,-500.0,0.00014898,2]
[422945583,1779666640000,-150.0,0.00014986,2]
[422945591,1779666640000,-275.0930254,0.00014997,2]
[422945593,1779666640000,-500.0,0.00014998,2]
[422945599,1779666640000,-640.53,0.00014998,2]
[422945590,1779666640000,-151.0,0.00014997,2]
[422945584,1779666640000,-150.0,0.00014986,2]
[422945592,1779666640000,-500.0,0.00014998,2]
[422945598,1779666640000,-640.53,0.00014998,2]
[422945585,1779666640000,-150.0,0.00014986,2]
[422945596,1779666640000,-640.53,0.00014998,2]
[422945595,1779666640000,-560.98964888,0.00014998,2]
[422945594,1779666640000,-500.0,0.00014998,2]
[422945607,1779666640000,-500.0,0.00014999,2]
[422945603,1779666640000,-172.7521576,0.00014999,2]
[422945604,1779666640000,-3188.4102032,0.00014999,2]
[422945605,1779666640000,-5472.1606348,0.00014999,2]
[422945606,1779666640000,-222968.0706552,0.00014999,2]
[422945602,1779666640000,-314512.2016212,0.00014999,2]
[422945609,1779666640000,-500.0,0.00014999,2]
[422945610,1779666640000,-500.0,0.00014999,2]
[422945608,1779666640000,-500.0,0.00014999,2]
[422945611,1779666640000,-500.0,0.00014999,2]
[422945616,1779666640000,-542.8,0.00014999,2]
[422945600,1779666640000,-640.53,0.00014998,2]
[422945628,1779666640000,-437.98,0.00014999,2]
[422945601,1779666640000,-640.55,0.00014998,2]
[422945589,1779666640000,-151.0,0.00014996,2]
[422945571,1779666640000,-151.0,0.00014899,2]
[422945587,1779666640000,-461.16771895,0.0001499,2]
[422945621,1779666640000,-500.0,0.00014999,2]
[422945563,1779666640000,-151.0,0.00014899,2]
[422945561,1779666640000,-151.0,0.00014899,2]
[422945560,1779666640000,-151.0,0.00014899,2]
[422945558,1779666640000,-422.702946,0.00014899,2]
[422945562,1779666640000,-274.499836,0.00014899,2]
[422945559,1779666640000,-422.702946,0.00014899,2]
[422945565,1779666640000,-151.0,0.00014899,2]
[422945564,1779666640000,-640.53,0.00014899,2]
[422945557,1779666640000,-422.702946,0.00014899,2]
[422945567,1779666640000,-151.0,0.00014899,2]
[422945575,1779666640000,-2529.46754221,0.000149,2]
[422945581,1779666640000,-150.0,0.00014986,2]
[422945574,1779666640000,-5145.66756333,0.000149,2]
[422945572,1779666640000,-10000.0,0.000149,2]
[422945577,1779666640000,-197.81098472,0.00014925,2]
[422945576,1779666640000,-168.12245968,0.000149,2]
[422945570,1779666640000,-151.0,0.00014899,2]
[422945566,1779666640000,-151.0,0.00014899,2]
[422945569,1779666640000,-151.0,0.00014899,2]
[422945573,1779666640000,-10403.50945245,0.000149,2]
[422945578,1779666640000,-152.0,0.00014925,7]
[422945579,1779666640000,-215.34753388,0.00014946,2]
[422945580,1779666640000,-150.0,0.00014986,2]
[422945582,1779666640000,-150.0,0.00014986,2]
[422945597,1779666640000,-640.53,0.00014998,2]
[422945568,1779666640000,-151.0,0.00014899,2]
[422945623,1779666640000,-500.0,0.00014999,2]
[422945622,1779666640000,-500.0,0.00014999,2]
[422945613,1779666640000,-500.0,0.00014999,2]
[422945653,1779666640000,-278.786554,0.00014999,2]
[422945656,1779666640000,-846.81909,0.00014999,2]
[422945649,1779666640000,-278.786554,0.00014999,2]
[422945661,1779666640000,-17031.3775462,0.00014999,2]
[422945652,1779666640000,-846.81909,0.00014999,2]
[422945657,1779666640000,-846.81909,0.00014999,2]
[422945651,1779666640000,-846.81909,0.00014999,2]
[422945662,1779666640000,-422.702946,0.00014999,2]
[422945654,1779666640000,-373.3,0.00014999,2]
[422945655,1779666640000,-278.786554,0.00014999,2]
[422945650,1779666640000,-278.786554,0.00014999,2]
[422945658,1779666640000,-278.786554,0.00014999,2]
[422945647,1779666640000,-846.81909,0.00014999,2]
[422945664,1779666640000,-422.702946,0.00014999,2]
[422945660,1779666640000,-277.385177,0.00014999,2]
[422945663,1779666640000,-422.702946,0.00014999,2]
[422945648,1779666640000,-846.81909,0.00014999,2]
[422945670,1779666640000,-151.0,0.00014999,2]
[422945668,1779666640000,-422.702946,0.00014999,2]
[422945666,1779666640000,-422.702946,0.00014999,2]
[422945669,1779666640000,-422.702946,0.00014999,2]
[422945667,1779666640000,-422.702946,0.00014999,2]
[422945671,1779666640000,-151.0,0.00014999,2]
[422945672,1779666640000,-151.0,0.00014999,2]
[422945673,1779666640000,-151.0,0.00014999,2]
[422945614,1779666640000,-500.0,0.00014999,2]
[422945665,1779666640000,-422.702946,0.00014999,2]
[422945645,1779666640000,-278.786554,0.00014999,2]
[422945659,1779666640000,-278.786554,0.00014999,2]
[422945643,1779666640000,-846.81909,0.00014999,2]
[422945642,1779666640000,-151.0,0.00014999,2]
[422945619,1779666640000,-500.0,0.00014999,2]
[422945620,1779666640000,-500.0,0.00014999,2]
[422945624,1779666640000,-500.0,0.00014999,2]
[422945618,1779666640000,-500.0,0.00014999,2]
[422945617,1779666640000,-500.0,0.00014999,2]
[422945626,1779666640000,-500.0,0.00014999,2]
[422945629,1779666640000,-151.0,0.00014999,2]
[422945625,1779666640000,-500.0,0.00014999,2]
[422945627,1779666640000,-500.0,0.00014999,2]
[422945615,1779666640000,-500.0,0.00014999,2]
[422945630,1779666640000,-151.0,0.00014999,2]
[422945633,1779666640000,-500.0,0.00014999,2]
[422945612,1779666640000,-279.52,0.00014999,2]
[422945644,1779666640000,-846.81909,0.00014999,2]
[422945634,1779666640000,-500.0,0.00014999,2]
[422945646,1779666640000,-278.786554,0.00014999,2]
[422945639,1779666640000,-151.0,0.00014999,2]
[422945641,1779666640000,-151.0,0.00014999,2]
[422945638,1779666640000,-151.0,0.00014999,2]
[422945635,1779666640000,-156.4,0.00014999,2]
[422945636,1779666640000,-44909.493224,0.00014999,2]
[422945637,1779666640000,-151.0,0.00014999,2]
[422945631,1779666640000,-500.0,0.00014999,2]
[422945632,1779666640000,-500.0,0.00014999,2]
[422945640,1779666640000,-151.0,0.00014999,2]
[422945716,1779666641000,-278.786554,0.00015,2]
[422945718,1779666641000,-422.702946,0.00015,2]
[422945720,1779666641000,-422.702946,0.00015,2]
[422945712,1779666641000,-278.786554,0.00015,2]
[422945714,1779666641000,-846.81909,0.00015,2]
[422945694,1779666641000,-666.0,0.00014999,2]
[422945708,1779666641000,-278.786554,0.00015,2]
[422945706,1779666641000,-846.81909,0.00015,2]
[422945701,1779666641000,-152.529896,0.00015,2]
[422945722,1779666641000,-422.702946,0.00015,2]
[422945700,1779666641000,-151.0,0.00015,2]
[422945709,1779666641000,-846.81909,0.00015,2]
[422945725,1779666641000,-422.702946,0.00015,2]
[422945736,1779666641000,-151.0,0.00015,2]
[422945729,1779666641000,-151.0,0.00015,2]
[422945731,1779666641000,-151.0,0.00015,2]
[422945735,1779666641000,-196.470708,0.00015,2]
[422945738,1779666641000,-151.0,0.00015,2]
[422945739,1779666641000,-500.0,0.00015035,2]
[422945733,1779666641000,-151.0,0.00015,2]
[422945734,1779666641000,-151.0,0.00015,2]
[422945737,1779666641000,-151.0,0.00015,2]
[422945741,1779666641000,-233.01,0.00015119,2]
[422945743,1779666641000,-679.6088976,0.00015201,2]
[422945742,1779666641000,-164.02,0.00015161,2]
[422945740,1779666641000,-1896.99,0.00015105,2]
[422945727,1779666641000,-151.0,0.00015,2]
[422945704,1779666641000,-846.81909,0.00015,2]
[422945681,1779666641000,-151.0,0.00014999,2]
[422945698,1779666641000,-6227799.72903133,0.00015,2]
[422945754,1779666641000,-270.4,0.00016438,2]
[422945682,1779666641000,-151.0,0.00014999,2]
[422945677,1779666641000,-151.0,0.00014999,2]
[422945675,1779666641000,-151.0,0.00014999,2]
[422945674,1779666641000,-151.0,0.00014999,2]
[422945680,1779666641000,-151.0,0.00014999,2]
[422945678,1779666641000,-151.0,0.00014999,2]
[422945679,1779666641000,-151.0,0.00014999,2]
[422945676,1779666641000,-151.0,0.00014999,2]
[422945683,1779666641000,-151.0,0.00014999,2]
[422945685,1779666641000,-151.0,0.00014999,2]
[422945686,1779666641000,-151.0,0.00014999,2]
[422945702,1779666641000,-151.0,0.00015,2]
[422945688,1779666641000,-151.0,0.00014999,2]
[422945684,1779666641000,-151.0,0.00014999,2]
[422945689,1779666641000,-151.0,0.00014999,2]
[422945690,1779666641000,-300.0,0.00014999,2]
[422945691,1779666641000,-300.0,0.00014999,2]
[422945692,1779666641000,-666.0,0.00014999,2]
[422945693,1779666641000,-300.0,0.00014999,2]
[422945696,1779666641000,-300.0,0.00014999,2]
[422945705,1779666641000,-278.786554,0.00015,2]
[422945699,1779666641000,-318.12,0.00015,2]
[422945703,1779666641000,-153.339106,0.00015,2]
[422945695,1779666641000,-351.41551866,0.00014999,2]
[422945697,1779666641000,-300.0,0.00014999,2]
[422945687,1779666641000,-151.0,0.00014999,2]
[422945745,1779666641000,-1896.99,0.00015456,2]
[422945744,1779666641000,-500.0,0.00015309,2]
[422945803,1779666641000,-21408.4522537,0.00017737,2]
[422945783,1779666641000,-706.0,0.00017393,2]
[422945773,1779666641000,-223.28,0.00017242,2]
[422945782,1779666641000,-608.0,0.00017393,2]
[422945784,1779666641000,-300.0,0.00017711,2]
[422945780,1779666641000,-608.0,0.00017393,2]
[422945785,1779666641000,-666.0,0.00017711,2]
[422945779,1779666641000,-608.0,0.00017393,2]
[422945787,1779666641000,-666.0,0.00017711,2]
[422945788,1779666641000,-300.0,0.00017711,2]
[422945789,1779666641000,-300.0,0.00017711,2]
[422945786,1779666641000,-300.0,0.00017711,2]
[422945790,1779666641000,-25000.0,0.00017712,3]
[422945781,1779666641000,-608.0,0.00017393,2]
[422945792,1779666641000,-300.0,0.0001772,2]
[422945794,1779666641000,-300.0,0.0001772,2]
[422945795,1779666641000,-25000.0,0.00017721,3]
[422945796,1779666641000,-300.0,0.00017729,2]
[422945797,1779666641000,-300.0,0.00017729,2]
[422945793,1779666641000,-666.0,0.0001772,2]
[422945802,1779666641000,-300.0,0.00017736,2]
[422945800,1779666641000,-151.0,0.00017734,2]
[422945798,1779666641000,-300.0,0.00017729,2]
[422945801,1779666641000,-300.0,0.00017736,2]
[422945799,1779666641000,-25000.0,0.0001773,3]
[422945804,1779666641000,-75938.6771464,0.00017737,2]
[422945805,1779666641000,-174.142519,0.00017737,2]
[422945791,1779666641000,-300.0,0.0001772,2]
[422945778,1779666641000,-608.0,0.00017393,2]
[422945756,1779666641000,-800.0,0.00016471,2]
[422945768,1779666641000,-557.0,0.00017119,2]
[422945747,1779666641000,-150.21,0.0001548,2]
[422945755,1779666641000,-175.879392,0.00016438,2]
[422945750,1779666641000,-168.24,0.00015739,2]
[422945748,1779666641000,-500.0,0.00015583,2]
[422945753,1779666641000,-10760.07146331,0.00016067,2]
[422945746,1779666641000,-297.67,0.00015464,2]
[422945749,1779666641000,-223.28,0.00015675,2]
[422945774,1779666641000,-231.753795,0.00017366,2]
[422945752,1779666641000,-150.21,0.00016014,2]
[422945758,1779666641000,-1019.79,0.00016474,2]
[422945757,1779666641000,-754.29,0.00016474,2]
[422945762,1779666641000,-421.54288175,0.00016983,2]
[422945760,1779666641000,-164.02,0.00016846,2]
[422945751,1779666641000,-205.85,0.00015984,2]
[422945759,1779666641000,-157.30760087,0.000168,2]
[422945761,1779666641000,-168.24,0.00016939,2]
[422945775,1779666641000,-608.0,0.00017393,2]
[422945770,1779666641000,-557.0,0.00017119,2]
[422945776,1779666641000,-608.0,0.00017393,2]
[422945772,1779666641000,-605.188,0.00017119,2]
[422945771,1779666641000,-557.0,0.00017119,2]
[422945777,1779666641000,-608.0,0.00017393,2]
[422945766,1779666641000,-557.0,0.00017119,2]
[422945767,1779666641000,-557.0,0.00017119,2]
[422945765,1779666641000,-557.0,0.00017119,2]
[422945763,1779666641000,-233.01,0.00017009,2]
[422945764,1779666641000,-557.0,0.00017119,2]
[422945769,1779666641000,-557.0,0.00017119,2]
[422945836,1779666642000,-151.0,0.00017837,2]
[422945834,1779666642000,-25000.0,0.000178,3]
[422945841,1779666642000,-434.59127498,0.0001789,2]
[422945844,1779666642000,-1449.77638,0.000179,2]
[422945846,1779666642000,-1449.77637,0.000179,2]
[422945840,1779666642000,-165.63288126,0.0001789,2]
[422945827,1779666642000,-25000.0,0.00017747,3]
[422945839,1779666642000,-321.52265188,0.0001789,2]
[422945847,1779666642000,-1449.77638,0.000179,2]
[422945831,1779666642000,-25000.0,0.00017774,3]
[422945838,1779666642000,-395.19644939,0.0001789,2]
[422945843,1779666642000,-1449.77638,0.000179,2]
[422945857,1779666642000,-270.4,0.0001841,2]
[422945851,1779666642000,-151.0,0.00017941,2]
[422945854,1779666642000,-350.0,0.0001813,2]
[422945849,1779666642000,-1000.0,0.00017941,2]
[422945852,1779666642000,-500.0,0.00018,2]
[422945850,1779666642000,-758.48683559,0.00017941,2]
[422945855,1779666642000,-318.12,0.000182,2]
[422945856,1779666642000,-350.0,0.00018212,2]
[422945858,1779666642000,-1778.0,0.00018439,5]
[422945860,1779666642000,-170.5818333,0.00018468,2]
[422945859,1779666642000,-1611.0,0.00018439,5]
[422945861,1779666642000,-874.92,0.00018524,2]
[422945862,1779666642000,-164.02,0.0001853,2]
[422945832,1779666642000,-25000.0,0.00017782,3]
[422945853,1779666642000,-800.0,0.00018118,2]
[422945837,1779666642000,-151.0,0.00017838,2]
[422945822,1779666642000,-151.0,0.00017737,2]
[422945835,1779666642000,-4590.74720352,0.000178,2]
[422945867,1779666642000,-300.0,0.00018999,2]
[422945809,1779666642000,-278.786554,0.00017737,2]
[422945806,1779666642000,-846.81909,0.00017737,2]
[422945807,1779666642000,-278.786554,0.00017737,2]
[422945808,1779666642000,-846.81909,0.00017737,2]
[422945812,1779666642000,-846.819082,0.00017737,2]
[422945814,1779666642000,-422.702946,0.00017737,2]
[422945813,1779666642000,-278.786555,0.00017737,2]
[422945810,1779666642000,-846.81909,0.00017737,2]
[422945815,1779666642000,-422.702946,0.00017737,2]
[422945811,1779666642000,-278.786554,0.00017737,2]
[422945817,1779666642000,-422.702952,0.00017737,2]
[422945818,1779666642000,-151.0,0.00017737,2]
[422945821,1779666642000,-151.0,0.00017737,2]
[422945816,1779666642000,-422.702946,0.00017737,2]
[422945819,1779666642000,-151.0,0.00017737,2]
[422945820,1779666642000,-151.0,0.00017737,2]
[422945824,1779666642000,-151.0,0.00017737,2]
[422945823,1779666642000,-151.0,0.00017737,2]
[422945826,1779666642000,-25000.0,0.00017738,3]
[422945825,1779666642000,-151.0,0.00017737,2]
[422945828,1779666642000,-151.0,0.00017753,2]
[422945833,1779666642000,-25000.0,0.00017791,3]
[422945848,1779666642000,-151.0,0.00017941,2]
[422945845,1779666642000,-1449.77638,0.000179,2]
[422945842,1779666642000,-1449.77637,0.000179,2]
[422945830,1779666642000,-25000.0,0.00017765,3]
[422945829,1779666642000,-25000.0,0.00017756,3]
[422945864,1779666642000,-350.0,0.00018829,2]
[422945879,1779666642000,-754.29,0.00019968,2]
[422945863,1779666642000,-223.28,0.0001881,2]
[422945897,1779666642000,-500.0,0.00020296,4]
[422945899,1779666642000,-318.12,0.000207,2]
[422945896,1779666642000,-164.02,0.00020215,2]
[422945895,1779666642000,-1216.51,0.00020145,2]
[422945903,1779666642000,-927.0,0.00020723,2]
[422945905,1779666642000,-519.0,0.00020723,2]
[422945898,1779666642000,-270.4,0.00020381,2]
[422945902,1779666642000,-1355.0,0.00020723,2]
[422945907,1779666642000,-931.0,0.00020723,2]
[422945908,1779666642000,-233.01,0.00020788,2]
[422945909,1779666642000,-999.99,0.00020951,2]
[422945865,1779666642000,-233.01,0.00018898,2]
[422945910,1779666642000,-150.99,0.00020951,2]
[422945912,1779666642000,-14180.28,0.00020951,2]
[422945911,1779666642000,-67223.33,0.00020951,2]
[422945914,1779666642000,-13932.06,0.00020951,2]
[422945916,1779666642000,-299.99,0.00020951,7]
[422945913,1779666642000,-2800.57,0.00020951,2]
[422945917,1779666642000,-9999.99,0.00020951,2]
[422945915,1779666642000,-964.11,0.00020951,2]
[422945918,1779666642000,-1750.08,0.00020951,2]
[422945919,1779666642000,-9999.99,0.00020951,2]
[422945925,1779666642000,-215.0,0.00021,2]
[422945923,1779666642000,-173.17,0.00020951,2]
[422945921,1779666642000,-5600.98,0.00020951,2]
[422945924,1779666642000,-157.0,0.00021,2]
[422945926,1779666642000,-160.0,0.00021,2]
[422945901,1779666642000,-626.133,0.00020723,2]
[422945894,1779666642000,-529.4,0.0002,2]
[422945906,1779666642000,-418.0,0.00020723,2]
[422945900,1779666642000,-4509.36601298,0.00020717,2]
[422945866,1779666642000,-151.0,0.00018997,2]
[422945904,1779666642000,-1271.0,0.00020723,2]
[422945869,1779666642000,-108813.20132368,0.00019,2]
[422945868,1779666642000,-574.45589957,0.00019,2]
[422945871,1779666642000,-500.0,0.00019148,3]
[422945872,1779666642000,-421.54288175,0.00019166,2]
[422945870,1779666642000,-208.0,0.00019,2]
[422945873,1779666642000,-200.0,0.00019201,2]
[422945874,1779666642000,-588.80980333,0.00019271,2]
[422945880,1779666642000,-1019.79,0.00019968,2]
[422945877,1779666642000,-2014.2897199,0.00019784,2]
[422945876,1779666642000,-800.0,0.00019766,2]
[422945878,1779666642000,-150.0,0.00019792,2]
[422945875,1779666642000,-350.0,0.00019622,2]
[422945888,1779666642000,-166.0,0.0002,2]
[422945889,1779666642000,-208.0,0.0002,2]
[422945882,1779666642000,-225.0,0.0002,9]
[422945893,1779666642000,-168.0,0.0002,2]
[422945891,1779666642000,-186.0,0.0002,2]
[422945890,1779666642000,-160.0,0.0002,2]
[422945887,1779666642000,-215.0,0.0002,2]
[422945892,1779666642000,-598.0,0.0002,2]
[422945886,1779666642000,-167.0,0.0002,2]
[422945885,1779666642000,-153.0,0.0002,2]
[422945883,1779666642000,-216.3,0.0002,5]
[422945881,1779666642000,-2000.0,0.00019998,7]
[422945884,1779666642000,-299.99999901,0.0002,2]
[422945967,1779666643000,-215.0,0.00023,2]
[422945972,1779666643000,-169.53,0.00023215,30]
[422945973,1779666643000,-169.54,0.00023215,30]
[422945971,1779666643000,-169.53,0.00023215,30]
[422945963,1779666643000,-169.54,0.00022668,30]
[422945969,1779666643000,-186.0,0.00023,2]
[422945964,1779666643000,-233.01,0.00022678,2]
[422945962,1779666643000,-169.53,0.00022668,30]
[422945966,1779666643000,-8167.40064099,0.00023,2]
[422945965,1779666643000,-3306.07475076,0.000229,2]
[422945970,1779666643000,-150.0,0.00023014,2]
[422945968,1779666643000,-160.0,0.00023,2]
[422945974,1779666643000,-150.0,0.000234,30]
[422945996,1779666643000,-186.0,0.00024,2]
[422945978,1779666643000,-151.0,0.00023716,7]
[422945975,1779666643000,-421.54288175,0.00023533,2]
[422945986,1779666643000,-519.0,0.00023723,2]
[422945979,1779666643000,-625.0,0.00023723,2]
[422945985,1779666643000,-1271.0,0.00023723,2]
[422945983,1779666643000,-927.0,0.00023723,2]
[422945981,1779666643000,-1355.0,0.00023723,2]
[422945988,1779666643000,-249.82,0.00023723,2]
[422945990,1779666643000,-931.0,0.00023723,2]
[422945992,1779666643000,-500.0,0.00023741,7]
[422945998,1779666643000,-150.0,0.00024164,2]
[422945999,1779666643000,-794.0,0.00024202,10]
[422945950,1779666643000,-169.54,0.0002212,30]
[422945976,1779666643000,-529.4,0.00023632,2]
[422945955,1779666643000,-396.09,0.00022466,2]
[422945995,1779666643000,-160.0,0.00024,2]
[422945947,1779666643000,-201.68822076,0.00022,3]
[422945928,1779666643000,-1852.0,0.00021077,5]
[422945927,1779666643000,-186.0,0.00021,2]
[422945929,1779666643000,-421.54288175,0.0002135,2]
[422945932,1779666643000,-256.61299167,0.00021452,2]
[422945930,1779666643000,-4508.29546262,0.0002135,2]
[422945931,1779666643000,-500.0,0.00021444,5]
[422945934,1779666643000,-621.78829552,0.00021452,2]
[422945933,1779666643000,-670.58624095,0.00021452,2]
[422945935,1779666643000,-300.0,0.00021756,2]
[422945938,1779666643000,-500.0,0.000219,2]
[422945937,1779666643000,-1610.21,0.000219,2]
[422945941,1779666643000,-151.0,0.00021918,2]
[422945939,1779666643000,-5000.0,0.00021918,2]
[422945936,1779666643000,-529.4,0.00021816,2]
[422945940,1779666643000,-150.0,0.00021918,2]
[422945942,1779666643000,-151.0,0.00021918,2]
[422945944,1779666643000,-215.0,0.00022,2]
[422945945,1779666643000,-160.0,0.00022,2]
[422945946,1779666643000,-186.0,0.00022,2]
[422945943,1779666643000,-151.0,0.00021918,2]
[422945949,1779666643000,-169.53,0.0002212,30]
[422945952,1779666643000,-318.12,0.000222,7]
[422945956,1779666643000,-200.0,0.00022493,2]
[422945957,1779666643000,-426.0,0.00022552,7]
[422945960,1779666643000,-169.53,0.00022668,30]
[422945953,1779666643000,-270.4,0.00022353,2]
[422945948,1779666643000,-169.53,0.0002212,30]
[422945958,1779666643000,-500.0,0.00022593,6]
[422945994,1779666643000,-215.0,0.00024,2]
[422945954,1779666643000,-1970.2,0.00022466,2]
[422946003,1779666643000,-169.53,0.00024585,30]
[422946024,1779666643000,-316.75294,0.00026,2]
[422946032,1779666643000,-126747.93600329,0.00026407,2]
[422946036,1779666643000,-150.0,0.00026641,2]
[422946039,1779666643000,-1349.72,0.00026723,2]
[422946037,1779666643000,-152.0,0.00026661,3]
[422946041,1779666643000,-1271.0,0.00026723,2]
[422946038,1779666643000,-625.0,0.00026723,2]
[422946040,1779666643000,-927.0,0.00026723,2]
[422946042,1779666643000,-519.0,0.00026723,2]
[422946035,1779666643000,-580233.50893622,0.000266,2]
[422946044,1779666643000,-1587.0,0.00026742,3]
[422946045,1779666643000,-154.97,0.00026829,30]
[422946043,1779666643000,-931.0,0.00026723,2]
[422946034,1779666643000,-151.0,0.00026597,7]
[422946046,1779666643000,-154.51,0.00026829,30]
[422946058,1779666643000,-500.0,0.00026999,7]
[422946049,1779666643000,-5000.0,0.00026846,2]
[422946051,1779666643000,-5000.0,0.00026846,2]
[422946055,1779666643000,-500.0,0.00026999,7]
[422946047,1779666643000,-151.0,0.00026843,7]
[422946053,1779666643000,-500.0,0.00026999,7]
[422946059,1779666643000,-500.0,0.00026999,7]
[422946057,1779666643000,-500.0,0.00026999,7]
[422946056,1779666643000,-500.0,0.00026999,7]
[422946052,1779666643000,-500.0,0.00026999,7]
[422946054,1779666643000,-500.0,0.00026999,7]
[422946060,1779666643000,-500.0,0.00026999,7]
[422945997,1779666643000,-346.58,0.0002411,2]
[422946048,1779666643000,-9368.01298948,0.00026846,2]
[422946027,1779666643000,-270.4,0.00026296,2]
[422946050,1779666643000,-5000.0,0.00026846,2]
[422946028,1779666643000,-500.0,0.00026355,7]
[422946029,1779666643000,-700.0,0.00026355,7]
[422946000,1779666643000,-871.0,0.00024202,10]
[422946002,1779666643000,-169.53,0.00024585,30]
[422946004,1779666643000,-169.52,0.00024585,30]
[422946006,1779666643000,-1000.0,0.00024658,2]
[422946007,1779666643000,-154.97,0.00024658,2]
[422946005,1779666643000,-162.04,0.00024658,2]
[422946009,1779666643000,-500.0,0.00024889,8]
[422946008,1779666643000,-154.51,0.00024658,2]
[422946011,1779666643000,-1085.27,0.00025,2]
[422946010,1779666643000,-234.0,0.00025,60]
[422946012,1779666643000,-6453.21513238,0.00025,2]
[422946014,1779666643000,-173.0,0.00025,2]
[422946015,1779666643000,-196.0,0.00025,2]
[422946001,1779666643000,-270.4,0.00024324,2]
[422946016,1779666643000,-532.0,0.00025,7]
[422946013,1779666643000,-230.0,0.00025,2]
[422946026,1779666643000,-500.0,0.00026037,9]
[422946030,1779666643000,-215.08487632,0.00026365,2]
[422946025,1779666643000,-247.56,0.00026027,7]
[422946023,1779666643000,-150.0,0.000259,30]
[422946031,1779666643000,-151.0,0.00026404,7]
[422946021,1779666643000,-154.97,0.00025743,7]
[422946018,1779666643000,-529.4,0.00025447,7]
[422946022,1779666643000,-154.51,0.00025743,7]
[422946017,1779666643000,-150.0,0.00025373,2]
[422946033,1779666643000,-151.0,0.00026597,7]
[422946020,1779666643000,-421.54288175,0.00025717,2]
[422946019,1779666643000,-1000.0,0.000256,2]
[422946099,1779666644000,-500.0,0.00026999,7]
[422946087,1779666644000,-500.0,0.00026999,7]
[422946090,1779666644000,-500.0,0.00026999,7]